bitfinex/quotes_BTCUSD_20230117
["timestamp","ask_amount","ask_price","bid_price","bid_amount"]
[1673993356005,3.46681626,21334.0,21333.0,0.46309]
[1673993357063,2.99683715,21334.0,21333.0,0.46309]
[1673993358628,3.14683715,21334.0,21333.0,0.46309]
[1673993360401,2.99683715,21334.0,21333.0,0.46309]
[1673993360625,2.82837257,21334.0,21333.0,0.46309]
[1673993360880,3.04777257,21334.0,21333.0,0.46309]
[1673993361410,3.15952559,21334.0,21333.0,0.46309]
[1673993361662,4.42592307,21334.0,21333.0,0.08745]
[1673993362201,4.59429788,21334.0,21333.0,0.08745]
[1673993362447,5.08070377,21334.0,21333.0,0.08745]
[1673993362708,5.00332896,21334.0,21333.0,0.08745]
[1673993362966,4.91232896,21334.0,21333.0,0.08745]
[1673993363488,5.08070011,21334.0,21333.0,0.08745]
[1673993363753,5.17170011,21334.0,21333.0,0.08745]
[1673993364289,5.02170011,21334.0,21333.0,0.45944]
[1673993365083,4.76232896,21334.0,21333.0,0.45944]
[1673993365345,5.35100546,21334.0,21333.0,0.45944]
[1673993365632,5.57542984,21334.0,21333.0,0.22944]
[1673993365896,5.46090546,21334.0,21333.0,0.22944]
[1673993366156,5.85165,21334.0,21333.0,0.22944]
[1673993366457,6.24265,21334.0,21333.0,0.22944]
[1673993366710,5.96207196,21334.0,21333.0,0.22944]
[1673993367240,6.53017196,21334.0,21333.0,0.22944]
[1673993367504,6.62967196,21334.0,21333.0,0.22944]
[1673993368334,6.53867196,21334.0,21333.0,0.22944]
[1673993368617,6.62967196,21334.0,21333.0,0.18620022]
[1673993368875,0.24731445,21332.0,21331.0,0.00861753]
[1673993369189,0.24731445,21332.0,21331.0,0.01076753]
[1673993369190,5.68364022,21332.0,21331.0,0.01076753]
[1673993369449,6.23500465,21332.0,21331.0,0.01076753]
[1673993369697,6.06684709,21332.0,21331.0,0.01076753]
[1673993370218,6.69255569,21332.0,21331.0,0.01076753]
[1673993370490,6.52438967,21332.0,21331.0,0.01076753]
[1673993370744,6.48355358,21332.0,21331.0,0.01076753]
[1673993371030,5.60756514,21332.0,21331.0,0.01076753]
[1673993371281,5.38325863,21332.0,21331.0,0.01076753]
[1673993371545,5.2173163,21332.0,21331.0,0.01076753]
[1673993372092,5.69629084,21332.0,21331.0,0.01076753]
[1673993372389,6.05827143,21332.0,21331.0,0.01076753]
[1673993372649,5.69139557,21332.0,21331.0,0.01076753]
[1673993373221,5.60039557,21332.0,21331.0,0.01076753]
[1673993373478,5.69139557,21332.0,21331.0,0.01076753]
[1673993374307,5.01951789,21332.0,21331.0,0.01076753]
[1673993374605,5.22261657,21332.0,21331.0,0.01076753]
[1673993374871,5.11051789,21332.0,21331.0,0.01076753]
[1673993375419,5.11051789,21332.0,21331.0,0.08790753]
[1673993375420,3.00205603,21332.0,21331.0,0.08790753]
[1673993375669,2.68105603,21332.0,21331.0,0.08790753]
[1673993375969,3.00205603,21332.0,21331.0,0.08790753]
[1673993376231,3.00205603,21332.0,21331.0,0.11790753]
[1673993376786,2.68105603,21332.0,21331.0,0.11790753]
[1673993377046,3.00205603,21332.0,21331.0,0.11790753]
[1673993377342,2.53327703,21332.0,21331.0,0.11790753]
[1673993377610,2.21227703,21332.0,21331.0,0.11790753]
[1673993377879,2.53327703,21332.0,21331.0,0.11790753]
[1673993378440,2.21227703,21332.0,21331.0,0.11790753]
[1673993380762,2.21248676,21332.0,21331.0,0.11790753]
[1673993383290,2.53348676,21332.0,21331.0,0.11790753]
[1673993384798,3.00226576,21332.0,21331.0,0.11790753]
[1673993385307,3.47104476,21332.0,21331.0,0.11790753]
[1673993385820,3.47104476,21332.0,21331.0,0.05895]
[1673993387082,3.38004476,21332.0,21331.0,0.05895]
[1673993387396,3.46604476,21332.0,21331.0,0.05995]
[1673993387594,3.57814344,21332.0,21331.0,0.05995]
[1673993387851,3.46604476,21332.0,21331.0,0.05995]
[1673993388633,3.38004476,21332.0,21331.0,0.05895]
[1673993388873,3.46604476,21332.0,21331.0,0.05995]
[1673993389654,4.41718564,21332.0,21331.0,0.05995]
[1673993390678,4.05534513,21332.0,21331.0,0.05995]
[1673993392024,4.11141036,21332.0,21331.0,0.05995]
[1673993392594,4.22359272,21332.0,21331.0,0.05995]
[1673993393913,3.97627827,21332.0,21331.0,0.05995]
[1673993394957,4.08840242,21332.0,21331.0,0.05995]
[1673993395217,4.56250459,21332.0,21331.0,0.05995]
[1673993395466,4.56250459,21332.0,21331.0,0.08995]
[1673993396007,4.45040597,21332.0,21331.0,0.08995]
[1673993396246,4.33819808,21332.0,21331.0,0.08995]
[1673993396753,6.01562631,21332.0,21331.0,0.08995]
[1673993397004,6.01562631,21332.0,21331.0,0.05995]
[1673993398011,0.05718811,21330.0,21326.0,0.01035255]
[1673993398309,3.13880726,21329.0,21326.0,0.01293255]
[1673993398524,0.843,21328.0,21326.0,0.01293255]
[1673993398784,1.419278,21327.0,21326.0,0.01293255]
[1673993399070,2.511408,21327.0,21326.0,0.01293255]
[1673993399279,2.513238,21327.0,21326.0,0.01293255]
[1673993399528,2.513238,21327.0,21326.0,0.01393255]
[1673993399773,2.513238,21327.0,21326.0,0.01433255]
[1673993400039,2.551388,21327.0,21326.0,0.01533255]
[1673993400338,2.588908,21327.0,21326.0,0.01533255]
[1673993401320,2.552908,21327.0,21326.0,0.01433255]
[1673993401583,2.685078,21327.0,21326.0,0.01433255]
[1673993401827,2.60403773,21327.0,21326.0,0.01433255]
[1673993402110,3.14354835,21327.0,21326.0,0.01433255]
[1673993403853,4.01668374,21327.0,21326.0,0.01433255]
[1673993404118,4.01668374,21327.0,21326.0,0.00716001]
[1673993404119,4.40599447,21327.0,21326.0,0.00716001]
[1673993404638,4.12558374,21327.0,21326.0,0.00716001]
[1673993404878,3.74444312,21327.0,21326.0,0.00716001]
[1673993405135,3.80744312,21327.0,21326.0,0.00716001]
[1673993405643,3.89444312,21327.0,21326.0,0.00716001]
[1673993408465,5.11109031,21327.0,21326.0,0.00716001]
[1673993408990,5.47395312,21327.0,21326.0,0.00716001]
[1673993409249,5.94805529,21327.0,21326.0,0.00716001]
[1673993409506,5.66764456,21327.0,21326.0,0.00716001]
[1673993409778,6.1712104,21327.0,21326.0,0.00716001]
[1673993410279,6.2804104,21327.0,21326.0,0.00716001]
[1673993411807,5.69335582,21327.0,21326.0,0.00716001]
[1673993412070,5.69335511,21327.0,21326.0,0.00716001]
[1673993412569,5.58137878,21327.0,21326.0,0.00716001]
[1673993413360,5.47147878,21327.0,21326.0,0.00716001]
[1673993413630,5.30374744,21327.0,21326.0,0.00716001]
[1673993415391,5.21674744,21327.0,21326.0,0.00716001]
[1673993415654,5.30774744,21327.0,21326.0,0.00716001]
[1673993415897,5.21674744,21327.0,21326.0,0.00716001]
[1673993416148,5.30774744,21327.0,21326.0,0.00716001]
[1673993417937,0.00781149,21325.0,21324.0,0.00630689]
[1673993418213,2.79164518,21325.0,21324.0,0.00945689]
[1673993418438,4.22815177,21325.0,21324.0,0.01181689]
[1673993418934,4.59866665,21325.0,21324.0,0.01181689]
[1673993419185,4.68966665,21325.0,21324.0,0.01181689]
[1673993419436,5.16485665,21325.0,21324.0,0.01181689]
[1673993419684,5.6241885,21325.0,21324.0,0.01181689]
[1673993420177,5.9241885,21325.0,21324.0,0.01181689]
[1673993423634,5.6241885,21325.0,21324.0,0.01181689]
[1673993424439,5.9241885,21325.0,21324.0,0.01181689]
[1673993426107,5.8331885,21325.0,21324.0,0.01181689]
[1673993426356,5.9241885,21325.0,21324.0,0.01181689]
[1673993427386,6.03601848,21325.0,21324.0,0.01181689]
[1673993427903,6.14531848,21325.0,21324.0,0.01181689]
[1673993428678,6.05431848,21325.0,21324.0,0.01181689]
[1673993428902,6.14531848,21325.0,21324.0,0.01181689]
[1673993429663,6.31304982,21325.0,21324.0,0.01181689]
[1673993430674,6.73047957,21325.0,21324.0,0.0059]
[1673993430926,6.20129148,21325.0,21324.0,0.0059]
[1673993431221,6.31316166,21325.0,21324.0,0.0059]
[1673993431479,6.20129148,21325.0,21324.0,0.0059]
[1673993431728,6.55961916,21325.0,21324.0,0.0059]
[1673993431980,6.55963459,21325.0,21324.0,0.0059]
[1673993432251,6.33581285,21325.0,21324.0,0.0059]
[1673993432552,6.91887003,21325.0,21324.0,0.0059]
[1673993432791,0.0042411,21323.0,21317.0,0.17193878]
[1673993433085,3.80948496,21322.0,21317.0,0.22565878]
[1673993433303,2.28266522,21321.0,21317.0,0.22834878]
[1673993433567,2.39606864,21320.0,21317.0,0.22834878]
[1673993433852,0.94820169,21319.0,21317.0,0.22834878]
[1673993434068,1.259174,21318.0,21317.0,0.22834878]
[1673993434318,1.25938373,21318.0,21317.0,0.22834878]
[1673993434578,2.51812373,21318.0,21317.0,0.22834878]
[1673993435360,2.51812373,21318.0,21317.0,0.11894878]
[1673993436583,2.70002373,21318.0,21317.0,0.11894878]
[1673993437365,3.71810759,21318.0,21317.0,0.11894878]
[1673993437619,3.86810759,21318.0,21317.0,0.11894878]
[1673993437882,3.71810759,21318.0,21317.0,0.11894878]
[1673993438866,3.62710759,21318.0,21317.0,0.11894878]
[1673993439088,3.71810759,21318.0,21317.0,0.11894878]
[1673993445935,3.24400542,21318.0,21317.0,0.11894878]
[1673993448537,3.39400542,21318.0,21317.0,0.11894878]
[1673993448785,0.648419,21317.0,21315.0,0.01357343]
[1673993449077,2.20559469,21316.0,21315.0,0.01753343]
[1673993450091,3.62201469,21316.0,21315.0,0.01753343]
[1673993450348,4.43878575,21316.0,21315.0,0.01753343]
[1673993450604,4.09611686,21316.0,21315.0,0.01753343]
[1673993450860,3.62201469,21316.0,21315.0,0.01753343]
[1673993451106,3.71301469,21316.0,21315.0,0.01753343]
[1673993451356,3.62201469,21316.0,21315.0,0.01753343]
[1673993452380,3.71301469,21316.0,21315.0,0.01753343]
[1673993452639,3.62201469,21316.0,21315.0,0.01753343]
[1673993453139,2.92288369,21316.0,21315.0,0.23080343]
[1673993453398,2.675682,21316.0,21315.0,0.23683343]
[1673993453642,1.976551,21316.0,21315.0,0.23683343]
[1673993455148,1.50742,21316.0,21315.0,0.23683343]
[1673993458206,1.50742,21316.0,21315.0,0.21467667]
[1673993458708,1.41642,21316.0,21315.0,0.21467667]
[1673993458961,1.50742,21316.0,21315.0,0.21467667]
[1673993461860,1.41642,21316.0,21315.0,0.21467667]
[1673993462082,1.50742,21316.0,21315.0,0.21467667]
[1673993462303,1.41642,21316.0,21315.0,0.21467667]
[1673993462562,1.50742,21316.0,21315.0,0.21467667]
[1673993462819,1.41642,21316.0,21315.0,0.21467667]
[1673993463045,1.50742,21316.0,21315.0,0.21467667]
[1673993465388,1.41642,21316.0,21315.0,0.21467667]
[1673993465641,1.976551,21316.0,21315.0,0.21467667]
[1673993465904,2.297551,21316.0,21315.0,0.21467667]
[1673993466436,2.297551,21316.0,21315.0,0.10733]
[1673993466686,2.445682,21316.0,21315.0,0.10733]
[1673993466910,2.766682,21316.0,21315.0,0.10733]
[1673993467136,2.445682,21316.0,21315.0,0.10733]
[1673993467397,2.766682,21316.0,21315.0,0.10733]
[1673993467653,3.24057569,21316.0,21315.0,0.10733]
[1673993467914,3.56157569,21316.0,21315.0,0.10733]
[1673993468676,3.9470009,21316.0,21315.0,0.10733]
[1673993468938,3.8560009,21316.0,21315.0,0.10733]
[1673993469197,3.6293089,21316.0,21315.0,0.10733]
[1673993471097,3.6293089,21316.0,21315.0,0.08233]
[1673993471390,3.5383089,21316.0,21315.0,0.08233]
[1673993471924,3.6293089,21316.0,21315.0,0.08233]
[1673993473001,3.5383089,21316.0,21315.0,0.08233]
[1673993473514,4.46055967,21316.0,21315.0,0.08233]
[1673993473779,5.13131797,21316.0,21315.0,0.08233]
[1673993474044,5.13131797,21316.0,21310.0,0.109]
[1673993474045,0.26052,21315.0,21309.0,0.1114]
[1673993474312,0.05609,21311.0,21309.0,0.1114]
[1673993474609,1.93107764,21310.0,21309.0,0.1114]
[1673993474863,3.81313664,21310.0,21309.0,0.1114]
[1673993475130,3.62241069,21310.0,21309.0,0.1114]
[1673993475999,3.71341069,21310.0,21309.0,0.1114]
[1673993477604,2.92314769,21310.0,21309.0,0.1114]
[1673993477883,3.24435742,21310.0,21309.0,0.1114]
[1673993478166,3.15335742,21310.0,21309.0,0.1114]
[1673993478437,3.15335742,21310.0,21309.0,0.1064]
[1673993478694,1.73762973,21310.0,21309.0,0.1064]
[1673993478977,1.50762973,21310.0,21309.0,0.1064]
[1673993479503,1.41662973,21310.0,21309.0,0.1064]
[1673993479800,1.82862973,21310.0,21309.0,0.1064]
[1673993480050,1.50762973,21310.0,21309.0,0.1064]
[1673993480566,1.50742,21310.0,21309.0,0.1064]
[1673993480829,1.50762973,21310.0,21309.0,0.1064]
[1673993481636,1.41662973,21310.0,21309.0,0.1064]
[1673993481889,1.50762973,21310.0,21309.0,0.1064]
[1673993482168,1.41662973,21310.0,21309.0,0.1064]
[1673993482439,1.50762973,21310.0,21309.0,0.1064]
[1673993483511,1.82862973,21310.0,21309.0,0.1064]
[1673993483740,1.50762973,21310.0,21309.0,0.1064]
[1673993485279,3.17359898,21310.0,21309.0,0.1064]
[1673993485532,3.65080067,21310.0,21309.0,0.1064]
[1673993486817,3.55980067,21310.0,21309.0,0.1064]
[1673993487080,3.65080067,21310.0,21309.0,0.1064]
[1673993487337,3.55980067,21310.0,21309.0,0.1064]
[1673993487628,3.65080067,21310.0,21309.0,0.1064]
[1673993488368,3.55980067,21310.0,21309.0,0.1064]
[1673993488638,3.65080067,21310.0,21309.0,0.1064]
[1673993491240,3.55980067,21310.0,21309.0,0.1064]
[1673993491759,3.65080067,21310.0,21309.0,0.1064]
[1673993492843,3.35365742,21310.0,21309.0,0.1064]
[1673993493906,3.26265742,21310.0,21309.0,0.1064]
[1673993494153,3.35365742,21310.0,21309.0,0.1064]
[1673993495786,3.24435742,21310.0,21309.0,0.1064]
[1673993496043,3.15335742,21310.0,21309.0,0.1064]
[1673993496302,3.24435742,21310.0,21309.0,0.1064]
[1673993496578,3.15335742,21310.0,21309.0,0.1064]
[1673993496835,3.24435742,21310.0,21309.0,0.1064]
[1673993499692,1.82862973,21310.0,21309.0,0.19384417]
[1673993499948,1.50742,21310.0,21309.0,0.1064]
[1673993500215,1.50742,21310.0,21309.0,0.23676]
[1673993500472,1.41642,21310.0,21309.0,0.474048]
[1673993500763,1.50742,21310.0,21309.0,0.23676]
[1673993501242,1.50742,21310.0,21309.0,0.937655]
[1673993501506,1.50742,21310.0,21309.0,1.412663]
[1673993502044,1.50735182,21310.0,21309.0,1.412663]
[1673993502305,1.41635182,21310.0,21309.0,1.412663]
[1673993502563,1.50735182,21310.0,21309.0,1.412663]
[1673993502826,1.41635182,21310.0,21309.0,1.412663]
[1673993503086,1.50635182,21310.0,21309.0,1.412663]
[1673993503399,1.41635182,21310.0,21309.0,1.412663]
[1673993503661,1.50735182,21310.0,21309.0,1.175375]
[1673993504176,1.41635182,21310.0,21309.0,0.943378]
[1673993504447,1.50635182,21310.0,21309.0,0.70609]
[1673993505225,1.41635182,21310.0,21309.0,0.70609]
[1673993506555,1.50735182,21310.0,21309.0,0.70609]
[1673993507085,1.50735182,21310.0,21309.0,0.81629]
[1673993507517,1.97661482,21310.0,21309.0,0.70609]
[1673993508405,1.88561482,21310.0,21309.0,0.70609]
[1673993508634,1.97661482,21310.0,21309.0,0.70609]
[1673993509073,2.44587782,21310.0,21309.0,0.70609]
[1673993509309,3.2632692,21310.0,21309.0,0.70609]
[1673993509532,3.5842692,21310.0,21309.0,0.70609]
[1673993510073,3.1722692,21310.0,21309.0,0.70609]
[1673993510324,3.5842692,21310.0,21309.0,0.70609]
[1673993510603,3.2632692,21310.0,21309.0,0.70609]
[1673993510864,3.5842692,21310.0,21309.0,0.70609]
[1673993511648,3.15307951,21310.0,21309.0,0.70609]
[1673993511902,3.24407951,21310.0,21309.0,0.70609]
[1673993512153,3.35627853,21310.0,21309.0,0.70609]
[1673993512423,3.26527853,21310.0,21309.0,0.70609]
[1673993512676,2.94427853,21310.0,21309.0,0.70609]
[1673993512922,3.35627853,21310.0,21309.0,0.70609]
[1673993513181,3.03527853,21310.0,21309.0,0.70609]
[1673993513456,3.35627853,21310.0,21309.0,0.70609]
[1673993513715,3.03527853,21310.0,21309.0,0.70609]
[1673993513963,3.35627853,21310.0,21309.0,0.70609]
[1673993514213,3.15307951,21310.0,21309.0,0.70609]
[1673993514470,3.39718168,21310.0,21309.0,0.70609]
[1673993514735,3.8303807,21310.0,21309.0,0.70609]
[1673993516036,3.5093807,21310.0,21309.0,0.70609]
[1673993516374,3.8303807,21310.0,21309.0,0.70609]
[1673993517399,3.5093807,21310.0,21309.0,0.70609]
[1673993517681,3.8303807,21310.0,21309.0,0.70609]
[1673993518171,3.39718168,21310.0,21309.0,0.70609]
[1673993518424,3.62718168,21310.0,21309.0,0.70609]
[1673993518677,2.92307951,21310.0,21309.0,0.70609]
[1673993518952,3.24407951,21310.0,21309.0,0.70609]
[1673993519187,2.92307951,21310.0,21309.0,0.70609]
[1673993519431,3.24407951,21310.0,21309.0,0.70609]
[1673993519688,3.71818168,21310.0,21309.0,0.70609]
[1673993520197,3.8303807,21310.0,21309.0,0.70609]
[1673993520442,3.35627853,21310.0,21309.0,0.70609]
[1673993520947,3.03527853,21310.0,21309.0,0.70609]
[1673993521189,3.35627853,21310.0,21309.0,0.70609]
[1673993521434,3.03527853,21310.0,21309.0,0.70609]
[1673993521692,3.35627853,21310.0,21309.0,0.70609]
[1673993521938,2.92307951,21310.0,21309.0,0.70609]
[1673993522451,3.24407951,21310.0,21309.0,0.70609]
[1673993522694,2.92307951,21310.0,21309.0,0.70609]
[1673993522944,3.24407951,21310.0,21309.0,0.70609]
[1673993523941,2.92307951,21310.0,21309.0,0.70609]
[1673993524201,1.50735182,21310.0,21309.0,1.28497144]
[1673993524457,1.50735182,21310.0,21309.0,1.631273]
[1673993524957,1.50735182,21310.0,21309.0,2.567018]
[1673993524958,1.41635182,21310.0,21309.0,2.567018]
[1673993525208,1.50735182,21310.0,21309.0,2.57037444]
[1673993526560,1.50735182,21310.0,21309.0,2.85209444]
[1673993526730,1.50735182,21310.0,21309.0,3.37555444]
[1673993527000,1.50735182,21310.0,21309.0,3.68514557]
[1673993527261,1.50735182,21310.0,21309.0,3.93069557]
[1673993527528,1.50723889,21310.0,21309.0,5.52997629]
[1673993527762,1.50723889,21310.0,21309.0,4.7034048]
[1673993528024,1.50723889,21310.0,21309.0,4.59149557]
[1673993528282,1.50723889,21310.0,21309.0,4.98589557]
[1673993528805,1.50723889,21310.0,21309.0,5.92436339]
[1673993529085,1.50723889,21310.0,21309.0,4.98589557]
[1673993529086,1.41623889,21310.0,21309.0,4.98589557]
[1673993529299,1.41623889,21310.0,21309.0,6.2041049]
[1673993529552,1.41623889,21310.0,21309.0,6.2659198]
[1673993529805,1.41623889,21310.0,21309.0,6.03625424]
[1673993530063,1.41623889,21310.0,21309.0,6.26576354]
[1673993530369,1.41623889,21310.0,21309.0,6.42478472]
[1673993530576,1.42423889,21310.0,21309.0,6.44128472]
[1673993530824,1.42423889,21310.0,21309.0,7.10325983]
[1673993531385,1.42423889,21310.0,21309.0,6.44285983]
[1673993531676,1.41623889,21310.0,21309.0,6.43477643]
[1673993531932,1.42423889,21310.0,21309.0,6.21887507]
[1673993532195,1.41623889,21310.0,21309.0,5.43227341]
[1673993533240,1.42423889,21310.0,21309.0,4.38952462]
[1673993533486,1.41623889,21310.0,21309.0,4.32599557]
[1673993533737,1.42423889,21310.0,21309.0,4.33399557]
[1673993534004,1.41623889,21310.0,21309.0,4.32599557]
[1673993534262,1.42423889,21310.0,21309.0,4.33399557]
[1673993534781,1.41623889,21310.0,21309.0,4.32599557]
[1673993535043,1.42423889,21310.0,21309.0,4.05557846]
[1673993535296,1.42423889,21310.0,21309.0,4.04757846]
[1673993535830,1.42423889,21310.0,21309.0,4.28221846]
[1673993536076,1.43223889,21310.0,21309.0,4.29871846]
[1673993536339,1.41623889,21310.0,21309.0,4.29071846]
[1673993536622,1.42423889,21310.0,21309.0,4.29871846]
[1673993536911,1.41623889,21310.0,21309.0,4.05607846]
[1673993537161,1.42423889,21310.0,21309.0,4.06407846]
[1673993537410,1.41623889,21310.0,21309.0,5.10678228]
[1673993537663,1.42423889,21310.0,21309.0,7.16149615]
[1673993537950,1.42423889,21310.0,21309.0,7.25752405]
[1673993538256,1.42423889,21310.0,21309.0,6.65093871]
[1673993538541,1.42423889,21310.0,21309.0,6.97865763]
[1673993538542,1.41623889,21310.0,21309.0,6.97865763]
[1673993538800,1.41623889,21310.0,21309.0,6.64287426]
[1673993539591,0.98223889,21310.0,21309.0,8.57354161]
[1673993539837,0.98223889,21310.0,21309.0,8.35154025]
[1673993540097,0.76315839,21310.0,21309.0,8.07134216]
[1673993540901,0.97896303,21310.0,21309.0,8.35169493]
[1673993541151,0.98696303,21310.0,21309.0,8.35969493]
[1673993541958,0.98696303,21310.0,21309.0,8.30353966]
[1673993542443,0.98696303,21310.0,21309.0,8.58389243]
[1673993542975,0.98696303,21310.0,21309.0,8.07934216]
[1673993543246,0.38460081,21319.0,21310.0,0.03234897]
[1673993543494,0.00877433,21319.0,21318.0,0.2194]
[1673993543742,0.00877433,21319.0,21318.0,2.89733017]
[1673993543996,0.00877433,21319.0,21318.0,2.94632688]
[1673993544248,0.00877433,21319.0,21318.0,2.85888271]
[1673993544508,0.01577433,21319.0,21318.0,3.37644271]
[1673993545521,0.01577433,21319.0,21318.0,3.26624271]
[1673993545783,0.00877433,21319.0,21318.0,3.26624271]
[1673993546097,0.00877433,21319.0,21318.0,3.28124271]
[1673993546098,0.01377433,21319.0,21318.0,3.28124271]
[1673993547086,0.01377433,21319.0,21318.0,2.98124271]
[1673993547345,0.01377433,21319.0,21318.0,2.979406]
[1673993548358,0.01377433,21319.0,21318.0,2.98098578]
[1673993549886,0.01377433,21319.0,21318.0,3.28098578]
[1673993551119,0.01377433,21319.0,21318.0,2.98098578]
[1673993551372,0.01377433,21319.0,21318.0,3.28098578]
[1673993551625,0.01377433,21319.0,21318.0,3.42153578]
[1673993556343,0.01377433,21319.0,21318.0,3.72143578]
[1673993556877,0.01377433,21319.0,21318.0,3.57143578]
[1673993557709,0.01377433,21319.0,21318.0,3.68103578]
[1673993559021,0.01377433,21319.0,21318.0,3.91367578]
[1673993559279,0.01377433,21319.0,21318.0,3.94035578]
[1673993561344,0.01377433,21319.0,21318.0,3.79035578]
[1673993564197,0.01398406,21319.0,21318.0,3.379576]
[1673993564458,0.01377433,21319.0,21318.0,3.379576]
[1673993564975,0.01377433,21319.0,21318.0,3.142404]
[1673993565215,0.01377433,21319.0,21318.0,3.14265724]
[1673993565481,0.01398406,21319.0,21318.0,1.98473]
[1673993565973,0.33498406,21319.0,21318.0,1.98473]
[1673993566232,0.01398406,21319.0,21318.0,1.98473]
[1673993566756,0.04198406,21319.0,21318.0,1.97173]
[1673993567007,1.41031406,21319.0,21318.0,1.97173]
[1673993567785,1.41031406,21319.0,21318.0,1.97164959]
[1673993571326,1.41031406,21319.0,21318.0,1.38051176]
[1673993571885,1.52251308,21319.0,21318.0,1.38051176]
[1673993572941,1.41031406,21319.0,21318.0,1.38051176]
[1673993573249,1.52251308,21319.0,21318.0,1.38051176]
[1673993576667,1.41331308,21319.0,21318.0,1.11361207]
[1673993577488,1.58161161,21319.0,21318.0,1.11361207]
[1673993577744,1.73161161,21319.0,21318.0,1.11361207]
[1673993577997,1.58161161,21319.0,21318.0,1.11361207]
[1673993579326,2.1337133,21319.0,21318.0,1.11361207]
[1673993579615,3.36836581,21319.0,21318.0,1.11361207]
[1673993579885,3.32927658,21319.0,21318.0,1.11361207]
[1673993580443,3.29627658,21319.0,21318.0,1.11161207]
[1673993580952,3.29610854,21319.0,21318.0,1.11161207]
[1673993581465,3.16187853,21319.0,21318.0,1.11161207]
[1673993581978,3.29609663,21319.0,21318.0,1.11161207]
[1673993582259,3.6359807,21319.0,21318.0,1.11161207]
[1673993582504,3.5459807,21319.0,21318.0,1.11161207]
[1673993582770,3.6359807,21319.0,21318.0,1.11161207]
[1673993583022,3.5459807,21319.0,21318.0,1.11161207]
[1673993583247,3.77019492,21319.0,21318.0,1.11161207]
[1673993583508,3.5459807,21319.0,21318.0,1.11161207]
[1673993583769,3.6359807,21319.0,21318.0,1.11161207]
[1673993584021,3.5459807,21319.0,21318.0,1.11161207]
[1673993584271,3.02633959,21319.0,21318.0,1.11161207]
[1673993584492,2.65523227,21319.0,21318.0,1.11161207]
[1673993584741,2.93572983,21319.0,21318.0,1.11161207]
[1673993586263,3.63992277,21319.0,21318.0,1.11161207]
[1673993586509,3.54992277,21319.0,21318.0,1.11161207]
[1673993586772,3.41576877,21319.0,21318.0,1.11161207]
[1673993587043,3.32576877,21319.0,21318.0,1.11161207]
[1673993588079,3.62576877,21319.0,21318.0,1.11161207]
[1673993588345,3.71576877,21319.0,21318.0,1.11161207]
[1673993588630,3.71576877,21319.0,21318.0,1.09161207]
[1673993589120,3.62576877,21319.0,21318.0,0.45598939]
[1673993589375,3.71576877,21319.0,21318.0,0.45598939]
[1673993589672,4.31168452,21319.0,21318.0,0.45598939]
[1673993589937,4.31158687,21319.0,21318.0,0.45598939]
[1673993590453,4.78568904,21319.0,21318.0,0.45598939]
[1673993590706,4.31158687,21319.0,21318.0,0.45598939]
[1673993591496,0.15,21318.0,21309.0,0.36808701]
[1673993591740,0.1102,21313.0,21309.0,0.01354749]
[1673993591991,1.45017195,21312.0,21309.0,0.01354749]
[1673993592254,0.19072595,21311.0,21309.0,0.01354749]
[1673993592542,0.65996695,21311.0,21309.0,0.01354749]
[1673993592848,0.469241,21311.0,21309.0,0.01354749]
[1673993593626,0.479241,21311.0,21309.0,0.01554749]
[1673993594356,0.469241,21311.0,21309.0,0.01354749]
[1673993594609,0.495241,21311.0,21309.0,0.01354749]
[1673993595645,0.00020973,21310.0,21309.0,0.01354749]
[1673993596174,0.026,21311.0,21309.0,0.01363992]
[1673993596437,0.026,21311.0,21310.0,0.237274]
[1673993596724,0.026,21311.0,21309.0,0.01363992]
[1673993597240,0.99568024,21312.0,21310.0,0.237274]
[1673993597499,0.99568024,21312.0,21309.0,0.31563992]
[1673993597774,0.99588997,21312.0,21309.0,0.31363992]
[1673993598035,0.938329,21315.0,21310.0,0.347273]
[1673993598296,1.3855233,21315.0,21311.0,0.85667617]
[1673993598806,1.3855233,21315.0,21312.0,9.242e-05]
[1673993599075,0.00020973,21314.0,21312.0,9.242e-05]
[1673993599384,1.0053593,21315.0,21312.0,9.242e-05]
[1673993599631,1.3855253,21315.0,21312.0,9.242e-05]
[1673993599890,1.4745253,21315.0,21312.0,9.242e-05]
[1673993600186,1.3855253,21315.0,21312.0,9.242e-05]
[1673993600447,0.089,21314.0,21312.0,9.242e-05]
[1673993601447,0.089,21314.0,21311.0,0.469232]
[1673993601448,0.558175,21314.0,21311.0,0.469232]
[1673993601722,0.469175,21314.0,21311.0,0.469232]
[1673993602502,0.558175,21314.0,21311.0,0.469232]
[1673993602769,0.469175,21314.0,21311.0,0.469232]
[1673993603026,0.558175,21314.0,21311.0,0.469232]
[1673993603294,0.469175,21314.0,21311.0,0.469232]
[1673993603551,0.558175,21314.0,21311.0,0.469232]
[1673993604900,0.469175,21314.0,21311.0,0.469232]
[1673993605167,0.00020973,21313.0,21311.0,0.469232]
[1673993605445,0.469175,21314.0,21311.0,0.469232]
[1673993605741,0.558175,21314.0,21311.0,0.469232]
[1673993606005,0.469175,21314.0,21311.0,0.469232]
[1673993606267,0.088,21313.0,21312.0,9.242e-05]
[1673993606531,0.46938473,21314.0,21311.0,0.469232]
[1673993606791,0.55838473,21314.0,21311.0,0.469232]
[1673993607055,0.46938473,21314.0,21311.0,0.4454609]
[1673993607835,0.55838473,21314.0,21311.0,0.4454609]
[1673993608099,0.46938473,21314.0,21311.0,0.4454609]
[1673993608366,0.55838473,21314.0,21312.0,9.242e-05]
[1673993608679,0.46938473,21314.0,21311.0,0.4454609]
[1673993608937,0.55838473,21314.0,21311.0,0.4454609]
[1673993609711,0.46938473,21314.0,21312.0,9.242e-05]
[1673993610010,0.55838473,21314.0,21311.0,0.4454609]
[1673993610670,0.46938473,21314.0,21311.0,0.4454609]
[1673993610949,0.55838473,21314.0,21311.0,0.4454609]
[1673993611224,0.46938473,21314.0,21311.0,0.4454609]
[1673993611479,0.55838473,21314.0,21311.0,0.4454609]
[1673993611780,0.46938473,21314.0,21311.0,0.4454609]
[1673993612284,0.55838473,21314.0,21311.0,0.4454609]
[1673993612561,0.46938473,21314.0,21311.0,0.4454609]
[1673993612812,1.31690507,21314.0,21310.0,0.11]
[1673993613068,0.81265664,21313.0,21310.0,0.11]
[1673993613320,0.790219,21312.0,21309.0,0.01354749]
[1673993613581,0.321,21311.0,21309.0,0.01354749]
[1673993613866,0.65997195,21311.0,21309.0,0.01354749]
[1673993614094,0.469246,21311.0,21309.0,0.01354749]
[1673993615197,0.321,21310.0,21309.0,0.01354749]
[1673993615693,0.938498,21311.0,21309.0,0.01354749]
[1673993616523,0.469241,21311.0,21309.0,0.01363992]
[1673993617271,0.469234,21312.0,21309.0,0.01354749]
[1673993617548,0.469234,21312.0,21309.0,0.01363992]